bitfinex-derivatives/quotes_ETHF0:USTF0_20250421
["timestamp","ask_amount","ask_price","bid_price","bid_amount"]
[1745257569659,1.26527,1580.5,1580.4,1.26535]
[1745257570058,3.79015,1580.6,1580.4,1.26535]
[1745257570260,6.146,1580.5,1580.4,1.26535]
[1745257570455,8.5971,1580.5,1580.3,3.77378]
[1745257570654,9.86241,1580.5,1580.3,3.77378]
[1745257570854,2.4511,1580.4,1580.3,3.77378]
[1745257571053,6.146,1580.5,1580.4,1.26535]
[1745257571254,3.7163,1580.6,1580.2,5.5199]
[1745257571457,2.4511,1580.6,1580.5,1.26527]
[1745257572050,0.00948497,1580.7,1580.6,1.26519]
[1745257572457,0.00948497,1580.7,1580.6,9.47299]
[1745257572653,2.4511,1581.1,1581.0,1.26487]
[1745257572853,4.9343,1581.3,1581.2,1.26471]
[1745257573050,4.8657,1581.3,1581.2,1.26471]
[1745257573256,6.146,1581.3,1581.1,4.47252]
[1745257573452,2.474,1581.2,1581.1,4.47259]
[1745257574153,8.62,1581.2,1581.1,4.47259]
[1745257574457,8.62,1581.2,1581.1,3.2078]
[1745257574661,8.62,1581.2,1581.1,4.47259]
[1745257575053,8.62,1581.2,1581.1,1.26479]
[1745257575253,8.62,1581.2,1581.0,0.00948497]
[1745257575254,1.26479,1581.1,1581.0,0.00948497]
[1745257575551,2.474,1581.1,1581.0,1.27435497]
[1745257575861,3.73879,1581.1,1581.0,0.00948497]
[1745257576052,2.474,1581.1,1581.0,1.27435497]
[1745257576255,8.62,1581.1,1581.0,1.27435497]
[1745257576455,6.146,1581.1,1581.0,1.27435497]
[1745257577160,0.00948497,1581.3,1581.0,0.00948497]
[1745257577354,2.37228497,1581.3,1581.2,1.26471]
[1745257577749,0.00948497,1581.3,1581.2,1.26471]
[1745257578255,6.15548497,1581.3,1581.2,1.26471]
[1745257579154,6.15548497,1581.3,1581.1,7.8372]
[1745257579467,6.15548497,1581.3,1581.2,1.26471]
[1745257579759,6.15548497,1581.3,1581.2,42.54282978]
[1745257579964,6.146,1581.3,1581.2,47.54282978]
[1745257580158,2.3005,1581.7,1581.3,3.16149]
[1745257580360,2.3005,1581.7,1581.4,3.2078]
[1745257580554,2.4493,1581.8,1581.7,1.26431]
[1745257580862,2.4493,1581.8,1581.4,8.39336]
[1745257580863,1.26435,1581.7,1581.5,2.4254]
[1745257581053,2.3005,1581.7,1581.5,2.4254]
[1745257581256,3.56481,1581.7,1581.6,40.8]
[1745257581460,1.26463,1581.3,1581.2,2.4254]
[1745257581658,1.26456,1581.4,1581.2,3.69009]
[1745257581860,4.5892,1581.5,1581.2,2.4254]
[1745257582061,5.85367,1581.5,1581.3,1.26461]
[1745257582359,6.146,1581.4,1581.3,1.26461]
[1745257582859,8.5587,1581.4,1581.3,1.26463]
[1745257584259,8.5587,1581.4,1581.3,4.47243]
[1745257585155,8.5587,1581.4,1581.3,1.26463]
[1745257586562,6.146,1581.4,1581.3,4.47243]
[1745257587155,6.146,1581.4,1581.3,1.26463]
[1745257587354,8.5339,1581.4,1581.3,1.26463]
[1745257587554,8.5339,1581.4,1581.2,2.4254]
[1745257587757,2.3879,1581.3,1581.2,3.69011]
[1745257587960,8.5818,1581.4,1581.3,1.26463]
[1745257588162,2.4358,1581.4,1581.3,1.26463]
[1745257588669,6.06729,1581.4,1581.2,44.49009]
[1745257588867,1.26471,1581.2,1581.0,1.27429497]
[1745257589170,7.41072,1581.2,1581.0,1.27429497]
[1745257589362,2.3669,1581.1,1581.0,1.27429497]
[1745257589766,6.146,1581.2,1581.1,1.26479]
[1745257589964,6.146,1581.2,1581.1,4.47259]
[1745257590658,6.146,1581.2,1581.1,9.70359]
[1745257594567,12.41071,1581.2,1581.1,3.2078]
[1745257594762,14.66896,1581.2,1581.0,1.27435497]
[1745257594962,5.80089,1581.1,1581.0,1.27435497]
[1745257595168,5.80089,1581.1,1581.0,0.00948497]
[1745257595169,10.6821,1581.1,1581.0,0.00948497]
[1745257595466,11.94689,1581.1,1581.0,0.00948497]
[1745257596062,16.94689,1581.1,1581.0,0.00948497]
[1745257598060,10.6821,1581.1,1581.0,1.27435497]
[1745257598271,10.6821,1581.1,1581.0,42.07435497]
[1745257598968,8.4042,1581.1,1581.0,1.27435497]
[1745257599171,8.4042,1581.1,1581.0,3.57845497]
[1745257599563,8.4042,1581.1,1581.0,44.37845497]
[1745257600868,6.146,1581.1,1581.0,44.37845497]
[1745257601573,5.4872,1581.1,1581.0,49.37845497]
[1745257601768,5.0505,1581.1,1581.0,51.67865497]
[1745257602065,3.4693,1581.1,1581.0,46.67865497]
[1745257602271,4.8553,1581.4,1581.3,1.26463]
[1745257603174,11.0013,1581.4,1581.3,1.26463]
[1745257603872,8.5818,1581.4,1581.3,3.70693]
[1745257605076,0.00948497,1581.8,1581.7,1.26431]
[1745257605573,2.43348497,1581.8,1581.7,44.50661]
[1745257605770,2.43348497,1581.8,1581.7,42.06431]
[1745257605976,2.43348497,1581.8,1581.7,1.26431]
[1745257606275,8.57948497,1581.8,1581.7,1.26431]
[1745257607177,8.57948497,1581.8,1581.6,40.8]
[1745257607375,4.7431,1581.7,1581.6,42.06439]
[1745257608177,10.8891,1581.7,1581.6,44.42879]
[1745257608479,8.4307,1581.7,1581.6,44.42879]
[1745257613172,6.146,1581.7,1581.6,44.42879]
[1745257614578,4.86626,1581.7,1581.6,49.42879]
[1745257614767,0.59155596,1581.7,1581.6,49.42879]
[1745257614974,2.405,1582.1,1582.0,1.26407]
[1745257615374,2.405,1582.1,1582.0,3.52877]
[1745257616273,8.551,1582.1,1582.0,3.52877]
[1745257617180,2.405,1582.1,1582.0,3.52877]
[1745257617376,2.405,1582.1,1582.0,4.02111711]
[1745257619078,2.405,1582.1,1582.0,3.52877]
[1745257619876,2.405,1582.1,1582.0,1.26407]
[1745257620774,2.38282761,1582.2,1582.1,1.26399]
[1745257621075,4.67302761,1582.2,1582.1,1.26399]
[1745257621282,4.67302761,1582.2,1582.1,3.58729]
[1745257621884,4.67302761,1582.2,1582.1,44.38729]
[1745257624682,0.00622761,1582.2,1582.1,47.59509]
[1745257624884,4.7633,1582.6,1582.5,1.26367]
[1745257625385,10.9093,1582.6,1582.5,1.26367]
[1745257625979,10.9093,1582.6,1582.5,3.65597]
[1745257626179,4.7633,1582.6,1582.5,3.65597]
[1745257626581,21.95038293,1583.0,1582.9,1.26335]
[1745257626784,21.38908293,1583.0,1582.9,1.26335]
[1745257627180,27.53508293,1583.0,1582.8,1.27285497]
[1745257627490,3.15857,1582.8,1582.2,7.4568]
[1745257627685,1.26359,1582.6,1582.3,1.26377]
[1745257627987,3.61567,1582.5,1582.3,1.26377]
[1745257628184,4.6396,1582.4,1582.3,1.26377]
[1745257629388,10.7856,1582.4,1582.3,1.26377]
[1745257630180,10.7856,1582.4,1582.2,1.27334497]
[1745257630380,2.3359,1582.3,1582.2,1.27334497]
[1745257631181,8.4819,1582.3,1582.2,1.27334497]
[1745257631386,8.4819,1582.3,1582.2,3.60264497]
[1745257632285,2.3359,1582.3,1582.2,3.60264497]
[1745257632487,2.3037,1582.4,1582.3,1.26383]
[1745257632688,4.723,1582.4,1582.3,3.59313]
[1745257632889,4.723,1582.4,1582.3,1.26383]
[1745257634284,4.723,1582.4,1582.2,0.00948497]
[1745257634483,3.51263,1582.3,1582.2,0.00948497]
[1745257635293,9.65863,1582.3,1582.2,0.00948497]
[1745257636091,3.51263,1582.3,1582.2,0.00948497]
[1745257637294,9.65863,1582.3,1582.2,0.00948497]
[1745257638194,9.65863,1582.3,1582.1,3.2078]
[1745257638195,1.26391,1582.2,1582.1,3.2078]
[1745257638401,1.26407,1582.0,1581.9,102.86911]
[1745257638700,4.4569,1582.1,1581.9,46.004]
[1745257638894,8.00582,1582.1,1581.9,46.004]
[1745257639194,2.2849,1582.0,1581.9,47.26815]
[1745257639784,4.46638497,1582.1,1582.0,1.26407]
[1745257639989,0.00948497,1582.1,1582.0,4.47187]
[1745257640190,0.00948497,1582.1,1582.0,9.05167]
[1745257641390,4.4569,1582.4,1582.0,12.7876]
[1745257641697,2.2094,1582.7,1582.6,1.26359]
[1745257641890,5.84191,1582.7,1582.6,40.8]
[1745257642197,11.98791,1582.7,1582.6,40.8]
[1745257642393,11.98791,1582.7,1582.3,7.5188]
[1745257642394,1.26367,1582.5,1582.3,7.5188]
[1745257642789,11.51422,1582.7,1582.3,8.78263]
[1745257642790,2.369,1582.4,1582.3,8.78263]
[1745257642998,9.61895,1582.7,1582.6,1.26359]
[1745257643198,1.26359,1582.6,1582.5,1.26361]
[1745257643493,1.26359,1582.6,1582.4,1.26375]
[1745257643696,1.26359,1582.6,1582.3,49.58263]
[1745257643898,8.3554,1582.7,1582.6,1.26359]
[1745257644195,8.3554,1582.7,1582.5,1.2636]
[1745257644396,2.1952,1582.6,1582.5,1.2636]
[1745257645088,9.61898,1582.7,1582.3,49.58263]
[1745257645393,3.45879,1582.6,1582.5,1.26362]
[1745257645598,2.1952,1582.6,1582.4,1.26369]
[1745257645800,2.1952,1582.5,1582.4,1.26369]
[1745257646588,6.72203497,1582.8,1582.4,6.36714]
[1745257646797,7.69958497,1582.8,1582.7,1.26351]
[1745257647002,4.49178497,1582.8,1582.7,1.26351]
[1745257647500,5.75526497,1582.8,1582.7,1.26351]
[1745257647697,4.49178497,1582.8,1582.7,1.26351]
[1745257647899,0.00948497,1582.8,1582.7,1.26351]
[1745257648601,2.25048497,1582.8,1582.7,1.26351]
[1745257648800,2.25048497,1582.8,1582.7,1.76877181]
[1745257648999,0.00948497,1582.8,1582.7,1.76877181]
[1745257649395,2.29758497,1582.8,1582.7,1.76877181]
[1745257650596,0.00948497,1582.8,1582.7,1.76877181]
[1745257652395,0.00948497,1582.8,1582.7,1.26351]
[1745257652794,1.26351,1582.7,1582.6,10.66648497]
[1745257652996,1.26367,1582.5,1582.3,50.47457]
[1745257653194,3.51865,1582.4,1582.3,46.003]
[1745257653389,3.51865,1582.4,1582.3,40.8]
[1745257653599,3.15957,1582.3,1581.8,5.71426303]
[1745257653796,1.26415,1581.9,1581.8,0.51126303]
[1745257654000,1.26415,1581.9,1581.8,8.41904165]
[1745257654197,7.41015,1581.9,1581.8,8.41904165]
[1745257654498,8.4009,1581.9,1581.8,8.41904165]
[1745257654706,8.4009,1581.9,1581.8,9.68327165]
[1745257655306,2.2549,1581.9,1581.8,9.68327165]
[1745257655795,3.51905,1581.9,1581.8,8.41904165]
[1745257655997,8.51905,1581.9,1581.8,8.41904165]
[1745257656295,1.26423,1581.8,1581.7,12.63804745]
[1745257656495,6.8109007,1581.8,1581.7,12.63804745]
[1745257656901,6.81091046,1581.8,1581.7,12.63804745]
[1745257657106,11.5788,1581.8,1581.7,13.90235745]
[1745257657402,12.84303,1581.8,1581.7,0.00948497]
[1745257657802,6.146,1581.8,1581.7,1.27379497]
[1745257658205,9.93078497,1582.0,1581.9,1.26415]
[1745257658809,0.00948497,1582.0,1581.9,1.26415]
[1745257659196,7.6972,1582.5,1582.0,3.16017]
[1745257659397,4.4894,1582.5,1582.4,1.26375]
[1745257659597,2.2792,1582.6,1582.5,1.26365]
[1745257659902,8.68669,1582.9,1582.4,5.51745]
[1745257660106,2.2792,1582.8,1582.4,5.51756]
[1745257660304,2.2792,1582.8,1582.5,5.21348497]
[1745257660510,2.28868497,1582.8,1582.7,1.26351]
[1745257660702,2.28868497,1582.8,1582.6,2.3582]
[1745257661000,3.55214497,1582.8,1582.6,2.3582]
[1745257661207,9.69814497,1582.8,1582.6,3.62175]
[1745257661605,8.43468497,1582.8,1582.6,2.3582]
[1745257661809,8.43468497,1582.8,1582.7,1.26351]
[1745257662510,8.43468497,1582.8,1582.6,3.62172]
[1745257662808,9.69814497,1582.8,1582.6,3.62176]
[1745257663015,1.26351,1582.7,1582.5,9.68490497]
[1745257663305,8.43468497,1582.8,1582.5,9.68490497]
[1745257663306,3.44329,1582.6,1582.5,8.42128497]
[1745257663610,3.44329,1582.6,1582.5,5.21348497]
[1745257664203,6.146,1582.6,1582.5,6.47715497]
[1745257664406,6.146,1582.6,1582.5,8.66715497]
[1745257665106,2.1797,1582.7,1582.6,1.26359]
[1745257666103,3.44321,1582.7,1582.5,8.66709497]
[1745257666410,3.44321,1582.7,1582.6,1.26359]
[1745257667105,9.58921,1582.7,1582.5,8.66708497]
[1745257668117,8.3257,1582.7,1582.6,1.26359]
[1745257668710,9.58921,1582.7,1582.6,1.26359]
[1745257669310,9.58921,1582.7,1582.5,8.66708497]
[1745257669504,9.58921,1582.7,1582.5,7.40348497]
[1745257669899,8.3257,1582.7,1582.6,1.26359]
[1745257670609,6.146,1582.7,1582.6,1.26359]
[1745257670812,6.146,1582.7,1582.6,3.55209]
[1745257671212,0.00948497,1582.8,1582.7,1.26351]
[1745257671403,2.39868497,1582.8,1582.7,3.56451]
[1745257672015,2.39868497,1582.8,1582.7,44.36451]
[1745257672313,2.39868497,1582.8,1582.7,43.101]
[1745257672611,2.39868497,1582.8,1582.7,44.36451]
[1745257673615,0.00948497,1582.8,1582.7,44.36451]
[1745257674414,1.27291497,1582.8,1582.7,44.36451]
[1745257674615,3.61281497,1582.8,1582.7,44.36451]
[1745257675215,9.75881497,1582.8,1582.7,44.36451]
[1745257676315,9.75881497,1582.8,1582.7,40.8]
[1745257676514,11.65396497,1582.8,1582.5,0.00948497]
[1745257676714,2.3065,1582.7,1582.6,1.26357]
[1745257676914,4.6578,1582.7,1582.6,1.26357]
[1745257677114,10.8038,1582.7,1582.6,1.26357]
[1745257677317,12.06731,1582.7,1582.6,1.26357]
[1745257677918,10.8038,1582.7,1582.6,1.26357]
[1745257678816,12.06731,1582.7,1582.6,1.26357]
[1745257679619,10.8038,1582.7,1582.5,40.80948497]
[1745257679807,12.06737,1582.7,1582.5,43.03028497]
[1745257680012,12.06737,1582.7,1582.5,44.29388497]
[1745257680209,7.81659,1582.7,1582.5,40.80948497]
[1745257680408,1.26359,1582.6,1582.5,0.00948497]
[1745257680710,1.26386,1582.3,1582.0,104.73912]
[1745257680914,1.26391,1582.2,1582.1,2.2208]
[1745257681317,6.7946,1582.3,1582.1,3.48472]
[1745257681622,1.26391,1582.2,1582.1,3.48472]
[1745257681812,3.49581,1582.2,1582.1,3.48472]
[1745257682014,3.49581,1582.2,1582.1,3.48479]
[1745257682416,3.49581,1582.2,1582.1,2.2208]
[1745257683120,3.49581,1582.2,1582.1,3.48479]
[1745257683321,9.64181,1582.2,1582.1,3.48479]
[1745257683619,9.64181,1582.2,1582.1,2.2208]
[1745257683817,1.26399,1582.1,1582.0,0.00948497]
[1745257684119,9.78719,1582.1,1582.0,0.00948497]
[1745257684320,9.78719,1582.1,1581.7,3.66248]
[1745257684321,1.26423,1581.8,1581.7,3.66248]
[1745257684622,1.26423,1581.8,1581.7,3.66246]
[1745257684917,4.47194,1582.0,1581.7,2.3982]
[1745257685119,8.5232,1582.0,1581.8,3.56575]
[1745257685318,1.26415,1581.9,1581.8,2.3016]
[1745257685615,3.64135,1581.9,1581.8,2.3016]
[1745257686111,9.78735,1581.9,1581.8,2.3016]
[1745257686307,9.78735,1581.9,1581.8,3.56583]
[1745257686711,8.5232,1581.9,1581.8,3.56583]
[1745257687120,9.78735,1581.9,1581.8,2.3016]
[1745257688113,9.78735,1581.9,1581.8,3.56583]
[1745257688419,8.5232,1581.9,1581.8,3.56583]
[1745257688719,6.146,1581.9,1581.8,3.56583]
[1745257688919,7.41015,1581.9,1581.8,3.56583]
[1745257689223,0.00948497,1582.1,1581.8,10.7004]
[1745257689413,0.00948497,1582.1,1581.9,3.69469]
[1745257689613,3.69773497,1582.1,1581.9,3.69469]
[1745257689814,2.4242,1582.0,1581.9,3.69469]
[1745257690121,0.00948497,1582.1,1581.9,1.26408]
[1745257690317,1.26413,1582.0,1581.8,9.66297]
[1745257690522,1.26413,1582.0,1581.9,1.26415]
[1745257690523,3.68827,1582.0,1581.9,1.26415]
[1745257690721,2.4242,1582.0,1581.9,1.26415]
[1745257690919,3.68827,1582.0,1581.9,1.26415]
[1745257691513,6.15548497,1582.1,1582.0,1.26407]
[1745257692230,0.00948497,1582.1,1582.0,1.26407]
[1745257692523,0.00948497,1582.1,1582.0,3.55077]
[1745257692726,8.3998,1582.6,1582.2,3.15972]
[1745257692926,5.5347,1582.6,1582.5,1.26367]
[1745257693421,3.2078,1582.6,1582.5,1.26367]
[1745257693619,21.47238293,1582.7,1582.3,7.77987]
[1745257693809,21.47238293,1582.7,1582.3,4.6203]
[1745257693810,2.3269,1582.6,1582.3,4.6203]
[1745257694015,3.59056,1582.6,1582.4,1.26372]
[1745257694424,2.3269,1582.5,1582.4,1.26372]
[1745257694718,3.59057,1582.5,1582.4,1.26372]
[1745257694921,2.3269,1582.5,1582.4,1.26372]
[1745257695222,8.4729,1582.5,1582.3,3.57268]
[1745257695424,1.26375,1582.4,1582.3,3.57268]
[1745257695720,2.3725,1582.4,1582.1,1.26393]
[1745257695921,1.26399,1582.1,1582.0,3.2078]
[1745257696225,1.26397,1582.2,1582.0,4.47182]
[1745257696428,3.63647,1582.2,1582.0,4.47182]
[1745257697023,2.3725,1582.2,1582.1,1.26399]
[1745257697323,8.5185,1582.2,1582.1,1.26399]
[1745257697722,6.146,1582.2,1582.1,6.44299]
[1745257698224,3.63614,1582.6,1582.4,1.2637]
[1745257698425,2.1632,1582.5,1582.4,1.2637]
[1745257698929,1.26367,1582.5,1582.2,8.77094]
[1745257699118,3.42687,1582.5,1582.2,8.77094]
[1745257699422,3.42687,1582.5,1582.3,1.26383]
[1745257699625,3.42695,1582.4,1582.3,1.26383]
[1745257699826,1.26383,1582.3,1582.1,1.26395]
[1745257700014,2.1632,1582.3,1582.1,1.26395]
[1745257700426,1.26391,1582.2,1582.0,4.47182]
[1745257700622,1.26391,1582.2,1582.1,1.26399]
[1745257700829,3.42709,1582.3,1581.9,5.49727]
[1745257701029,3.42709,1582.3,1582.1,3.2078]
[1745257701232,9.57303,1582.3,1582.2,1.26391]
[1745257701627,8.3092,1582.3,1582.2,1.26391]
[1745257701822,6.146,1582.3,1582.2,1.26391]
[1745257702022,6.146,1582.3,1582.2,3.57571]
[1745257702223,2.3138,1582.4,1582.3,1.26383]
[1745257702627,4.6278,1582.5,1582.4,1.26375]
[1745257702931,4.6278,1582.5,1582.3,1.26376]
[1745257703124,5.89152,1582.5,1582.3,1.26376]
[1745257703325,5.89152,1582.5,1582.4,1.26375]
[1745257703630,7.346,1582.6,1582.2,10.65057]
[1745257703828,10.94123,1582.6,1582.4,1.26368]
[1745257704132,13.8524,1582.6,1582.3,1.26381]
[1745257704435,5.88622,1582.5,1582.3,1.26381]
[1745257704636,11.47198,1582.6,1582.5,1.26367]
[1745257704637,9.57663,1582.6,1582.5,1.26367]
[1745257704933,9.57659,1582.6,1582.4,1.26368]
[1745257705236,3.43059,1582.6,1582.5,1.26367]
[1745257706129,2.167,1582.6,1582.5,1.26367]
[1745257706439,3.43059,1582.6,1582.5,1.26367]
[1745257706623,5.70329,1582.6,1582.5,1.26367]
[1745257706827,4.4397,1582.6,1582.5,1.26367]
[1745257707134,0.00948497,1582.7,1582.6,1.26359]
[1745257707328,0.00948497,1582.7,1582.6,3.47699]
[1745257708133,1.27299497,1582.7,1582.6,3.47699]
[1745257708434,1.27299497,1582.7,1582.6,2.2134]
[1745257708821,1.27299497,1582.7,1582.6,3.47699]
[1745257708822,3.61329497,1582.7,1582.6,3.47699]
[1745257709028,2.34978497,1582.7,1582.6,3.47699]
[1745257709336,2.34978497,1582.7,1582.6,5.71829]
[1745257710536,2.34978497,1582.7,1582.5,0.00948497]
[1745257710835,4.47139,1582.6,1582.5,0.00948497]
[1745257711035,6.83739,1582.6,1582.5,0.00948497]
[1745257711230,15.16759,1582.6,1582.5,0.00948497]
[1745257711426,1.26383,1582.3,1582.2,8.69227]
[1745257712137,3.44801,1582.4,1582.3,1.26383]
[1745257712336,1.26383,1582.3,1582.2,8.69224]
[1745257712537,3.44803,1582.3,1582.2,3.51324]
[1745257713426,2.1842,1582.3,1582.2,3.51324]
[1745257713627,2.3289,1582.5,1582.4,1.26375]
[1745257713837,6.45203497,1582.7,1582.6,1.26359]
[1745257713838,1.27299497,1582.7,1582.6,1.26359]
[1745257714039,0.00948497,1582.7,1582.6,1.26359]
[1745257714235,0.00948497,1582.7,1582.6,4.47139]
[1745257714440,6.7552,1583.0,1582.6,11.36676]
[1745257714636,2.3522,1582.9,1582.8,1.26342]
[1745257714837,2.3522,1582.9,1582.8,42.06342]
[1745257715140,3.43447,1583.0,1582.9,1.26335]
[1745257715334,4.5234,1583.0,1582.9,3.60895]
[1745257715529,5.78667,1583.0,1582.9,2.3456]
[1745257715733,1.26335,1582.9,1582.8,44.26376]
[1745257715934,3.61555,1582.9,1582.8,44.26376]
[1745257716139,2.3522,1582.9,1582.8,46.60936]
[1745257716355,3.61555,1582.9,1582.8,46.60936]
[1745257716653,2.3522,1582.9,1582.8,46.60936]
[1745257716854,3.43447,1583.0,1582.9,1.26335]
[1745257717154,5.83107,1583.0,1582.9,1.26335]
[1745257717753,5.83107,1583.0,1582.9,3.55505]
[1745257717955,5.83107,1583.0,1582.9,2.2917]
[1745257718654,4.5678,1583.0,1582.9,3.55505]
[1745257720656,0.00948497,1583.1,1583.0,1.26327]
[1745257720855,0.00948497,1583.1,1583.0,8.70327]
[1745257721056,2.3002,1583.4,1583.3,1.26303]
[1745257721262,16.73338293,1583.5,1583.4,1.26295]
[1745257721464,17.99625293,1583.5,1583.2,8.62748]
[1745257721665,18.92148293,1583.5,1583.4,1.26295]
[1745257722160,18.92148293,1583.5,1583.3,2.262]
[1745257722460,18.92148293,1583.5,1583.4,1.26295]
[1745257722756,20.18435293,1583.5,1583.3,8.69096]
[1745257722966,3.45097,1583.5,1583.3,8.69096]
[1745257723158,3.45097,1583.5,1583.4,2.3912]
[1745257723657,5.3959,1583.5,1583.1,2.1946]
[1745257723961,1.26304,1583.3,1583.2,3.65431]
[1745257724564,1.26304,1583.3,1583.2,2.3912]
[1745257724764,3.65559,1583.4,1583.2,3.65425]
[1745257724959,2.3926,1583.4,1582.9,3.21728497]
[1745257725263,1.26316,1583.2,1583.0,3.65439]
[1745257725458,1.26316,1583.2,1583.1,3.47959]
[1745257725764,8.26649,1583.3,1583.1,3.47959]
[1745257726358,2.1521,1583.2,1583.1,3.47959]
[1745257726564,4.6108,1583.3,1583.2,3.47951]
[1745257727060,3.2078,1583.5,1583.4,1.26295]
[1745257727261,5.3599,1583.5,1583.4,1.26295]
[1745257727959,2.23008497,1583.6,1583.5,1.26287]
[1745257728269,0.00948497,1583.6,1583.5,4.47067]
[1745257728457,0.00948497,1583.6,1583.5,6.82397]
[1745257728656,0.00948497,1583.6,1583.5,8.96487]
[1745257730568,2.2206,1583.9,1583.8,1.26263]
[1745257731161,4.5631,1583.9,1583.8,3.40353]
[1745257732570,4.5631,1583.9,1583.7,5.165]
[1745257732757,2.3476,1583.8,1583.5,7.7735]
[1745257732962,3.45446,1583.7,1583.5,3.2078]
[1745257733163,2.3476,1583.6,1583.5,4.47067]
[1745257733768,2.3476,1583.6,1583.5,1.26287]
[1745257734172,6.69103,1583.9,1583.4,8.57756]
[1745257734367,3.61023,1583.8,1583.7,1.26267]
[1745257734672,2.3476,1583.8,1583.7,1.26267]
[1745257735072,4.4123,1583.9,1583.8,1.26263]
[1745257735265,2.2206,1583.9,1583.8,1.26263]
[1745257735565,2.2206,1583.9,1583.8,4.47043]
[1745257735964,2.2206,1583.9,1583.8,6.81513]
[1745257737268,2.2206,1583.9,1583.8,4.47043]
[1745257737569,2.2891,1584.0,1583.9,1.26255]
[1745257737780,2.2891,1584.0,1583.9,3.48485]
[1745257737971,3.55157,1584.0,1583.9,3.48485]
[1745257738274,2.2891,1584.0,1583.9,3.48485]
[1745257738461,2.2891,1584.0,1583.9,44.28485]
[1745257738668,3.55157,1584.0,1583.9,44.28485]
[1745257738968,2.2891,1584.0,1583.9,44.28485]
[1745257740472,2.1979,1584.2,1584.1,1.26239]
[1745257740974,4.4269,1584.2,1584.1,1.26239]
[1745257741170,10.5729,1584.2,1584.0,3.43632]
[1745257741369,1.26247,1584.0,1583.9,40.8]
[1745257741571,1.26255,1583.9,1583.8,0.00948497]
[1745257741772,3.49155,1583.9,1583.8,0.00948497]
[1745257742177,12.84535,1583.9,1583.8,0.00948497]
[1745257742369,9.63755,1583.9,1583.8,0.00948497]
[1745257743170,9.63755,1583.9,1583.8,1.27211497]
[1745257743376,9.63755,1583.9,1583.8,0.00948497]
[1745257743874,12.84535,1583.9,1583.8,0.00948497]
[1745257744078,17.84535,1583.9,1583.8,0.00948497]
[1745257744272,22.42005,1583.9,1583.8,0.00948497]
[1745257744972,16.1575,1583.9,1583.8,1.27211497]
[1745257745175,17.42005,1583.9,1583.8,0.00948497]
[1745257745475,22.42005,1583.9,1583.8,0.00948497]
[1745257745772,3.15658,1583.8,1583.3,3.2078]
[1745257745967,1.26295,1583.4,1583.3,3.2078]
[1745257746171,1.26307,1583.3,1583.1,6.42618]
[1745257746376,2.2944,1583.2,1583.1,6.42619]
[1745257746769,4.6516,1583.2,1583.1,6.42619]
[1745257746968,5.91471,1583.2,1583.1,6.42619]
[1745257747373,4.6516,1583.2,1583.1,6.42619]
[1745257747578,2.28208497,1583.3,1583.2,1.26311]
[1745257747781,2.28208497,1583.3,1583.2,3.62091]
[1745257747979,2.28208497,1583.3,1583.2,6.82871]
[1745257748181,0.00948497,1583.3,1583.2,6.82871]
[1745257748779,0.00948497,1583.3,1583.2,11.82871]
[1745257749079,6.7436,1583.6,1583.2,10.5656]
[1745257749281,1.26292,1583.5,1583.3,3.62079]
[1745257749482,3.62012,1583.5,1583.3,3.62079]
[1745257749781,2.3572,1583.4,1583.3,3.62079]
[1745257749996,4.3864,1583.6,1583.5,1.26287]
[1745257750178,1.26263,1583.8,1583.6,1.26279]
[1745257750379,1.26271,1583.7,1583.6,1.26279]
[1745257750578,1.26269,1583.8,1583.6,1.26279]
[1745257750880,2.3405,1583.8,1583.7,1.26271]
[1745257751184,3.60313,1583.8,1583.6,1.26273]
[1745257751486,1.26272,1583.7,1583.5,3.2078]
[1745257751674,1.26272,1583.7,1583.6,1.26279]
[1745257751875,3.60318,1583.8,1583.6,1.26279]
[1745257752280,2.3405,1583.7,1583.5,3.2078]
[1745257752480,5.68349,1583.9,1583.6,1.26272]
[1745257752781,2.3405,1583.8,1583.6,1.26272]
[1745257753081,2.3405,1583.8,1583.7,1.26271]
[1745257753287,3.60313,1583.8,1583.7,1.26271]
[1745257753483,3.60313,1583.8,1583.6,1.26272]
[1745257753785,2.2545,1583.7,1583.6,1.26272]
[1745257754985,4.4209,1583.9,1583.8,1.26263]
[1745257755182,6.6754,1583.9,1583.8,1.26263]
[1745257755484,7.93798,1583.9,1583.8,1.26263]
[1745257755677,6.6754,1583.9,1583.8,1.26263]
[1745257755879,7.93795,1583.9,1583.8,1.26263]
[1745257756486,6.6754,1583.9,1583.8,1.26263]
[1745257756686,1.26245,1584.1,1583.8,1.26263]
[1745257756888,2.3216,1584.0,1583.9,1.26255]
[1745257757078,5.72032,1584.1,1584.0,1.26247]
[1745257757079,4.4579,1584.1,1584.0,1.26247]
[1745257757582,1.26255,1583.9,1583.8,0.00948497]
[1745257757776,1.37628423,1583.9,1583.8,0.00948497]
[1745257757981,3.15678,1583.7,1583.3,5.151]
[1745257758187,1.26295,1583.4,1583.3,5.151]
[1745257758383,4.47074,1583.5,1583.3,1.26303]
[1745257758680,3.5846,1583.4,1583.1,7.4654]
[1745257758881,2.2549,1583.3,1583.2,1.26311]
[1745257759281,0.00948497,1583.4,1583.3,1.26303]
[1745257759486,2.26438497,1583.4,1583.3,1.26303]
[1745257759686,0.00948497,1583.4,1583.3,1.26303]
[1745257762785,1.27243497,1583.4,1583.2,5.5758]
[1745257762992,1.27245497,1583.4,1583.2,6.83884]
[1745257763286,1.26303,1583.3,1583.2,3.2078]
[1745257763481,3.59213,1583.3,1583.2,8.3588]
[1745257763680,5.88853,1583.3,1583.2,6.41411]
[1745257763877,5.88853,1583.3,1583.2,5.151]
[1745257764085,4.6255,1583.3,1583.2,6.41411]